[Event "*** SCC Grand Prix: Titled Tuesday Blitz"]
[Site "Chess.com"]
[Date "2020.06.09"]
[Round "6"]
[White "Manukyan_Artak"]
[Black "Oneofmyturns"]
[Result "0-1"]
[WhiteElo "2309"]
[BlackElo "2575"]
[TimeControl "180+1"]
[EndTime "10:06:14 PDT"]
[Termination "Oneofmyturns won by resignation"]

1. e4 {[%clk 0:02:53.5]} 1... e5 {[%clk 0:03:00.3]} 2. Nf3 {[%clk 0:02:52.7]}
2... Nc6 {[%clk 0:03:00.7]} 3. d4 {[%clk 0:02:52.8]} 3... exd4 {[%clk
0:03:00.8]} 4. Nxd4 {[%clk 0:02:53.7]} 4... Nf6 {[%clk 0:03:00.9]} 5. Nxc6
{[%clk 0:02:53.7]} 5... bxc6 {[%clk 0:03:01.8]} 6. e5 {[%clk 0:02:53.8]} 6...
Qe7 {[%clk 0:03:02.4]} 7. Qe2 {[%clk 0:02:53.5]} 7... Nd5 {[%clk 0:03:02.8]} 8.
c4 {[%clk 0:02:54.3]} 8... Ba6 {[%clk 0:03:02.8]} 9. b3 {[%clk 0:02:54.6]} 9...
g6 {[%clk 0:03:02.7]} 10. g3 {[%clk 0:02:54]} 10... Bg7 {[%clk 0:02:59.6]} 11.
Bb2 {[%clk 0:02:53.4]} 11... O-O {[%clk 0:02:44.1]} 12. Bg2 {[%clk 0:02:52.4]}
12... f6 {[%clk 0:02:44.6]} 13. e6 {[%clk 0:02:47]} 13... Rae8 {[%clk
0:02:36.2]} 14. O-O {[%clk 0:02:45.7]} 14... Nb6 {[%clk 0:02:36.3]} 15. Re1
{[%clk 0:02:43.3]} 15... c5 {[%clk 0:02:26.1]} 16. Nd2 {[%clk 0:02:04]} 16...
dxe6 {[%clk 0:02:23.2]} 17. Ne4 {[%clk 0:01:58.7]} 17... f5 {[%clk 0:02:18.9]}
18. Bxg7 {[%clk 0:01:55.8]} 18... Kxg7 {[%clk 0:02:19.8]} 19. Qb2+ {[%clk
0:01:54.9]} 19... e5 {[%clk 0:02:18.2]} 20. Nc3 {[%clk 0:01:51.8]} 20... Bc8
{[%clk 0:01:49.6]} 21. a4 {[%clk 0:01:47.8]} 21... a5 {[%clk 0:01:48.6]} 22.
Rad1 {[%clk 0:01:43.9]} 22... Kg8 {[%clk 0:01:35.7]} 23. Nd5 {[%clk 0:01:29]}
23... Nxd5 {[%clk 0:01:19.2]} 24. Rxd5 {[%clk 0:01:25.8]} 24... e4 {[%clk
0:01:17.4]} 25. f4 {[%clk 0:01:21.8]} 25... Bb7 {[%clk 0:01:13.7]} 26. Re5
{[%clk 0:01:21.4]} 26... Qd6 {[%clk 0:01:13.8]} 27. Rxe8 {[%clk 0:01:20.7]}
27... Rxe8 {[%clk 0:01:14.7]} 28. Qc2 {[%clk 0:01:13]} 28... Qd4+ {[%clk
0:01:11.9]} 29. Kh1 {[%clk 0:01:13.1]} 29... Rd8 {[%clk 0:01:12.5]} 30. h4
{[%clk 0:01:12.6]} 30... h5 {[%clk 0:01:09.1]} 31. Kh2 {[%clk 0:01:12.2]} 31...
Qd2 {[%clk 0:01:05.8]} 32. Re2 {[%clk 0:01:01.9]} 32... Qxc2 {[%clk 0:01:04.4]}
33. Rxc2 {[%clk 0:01:02.8]} 33... Kf7 {[%clk 0:00:59.8]} 34. Kg1 {[%clk
0:01:00.9]} 34... Rd3 {[%clk 0:00:59.2]} 35. Kf2 {[%clk 0:00:55.2]} 35... Rxb3
{[%clk 0:00:58.1]} 36. Bf1 {[%clk 0:00:55.3]} 36... Bc6 {[%clk 0:00:49.9]} 37.
Be2 {[%clk 0:00:51]} 37... Bxa4 {[%clk 0:00:48.5]} 38. Ra2 {[%clk 0:00:50.8]}
38... Rb4 {[%clk 0:00:48.4]} 39. Ke3 {[%clk 0:00:50.4]} 39... Ke7 {[%clk
0:00:42.6]} 40. Kd2 {[%clk 0:00:50.3]} 40... Kd6 {[%clk 0:00:40.3]} 41. Ra3
{[%clk 0:00:47.2]} 41... Rb2+ {[%clk 0:00:37.3]} 42. Ke3 {[%clk 0:00:45.5]}
42... Rb3+ {[%clk 0:00:37.2]} 0-1

[Event "*** SCC Grand Prix: Titled Tuesday Blitz"]
[Site "Chess.com"]
[Date "2020.06.09"]
[Round "6"]
[White "MomchilPetkov"]
[Black "bascheyaro"]
[Result "0-1"]
[WhiteElo "2535"]
[BlackElo "2745"]
[TimeControl "180+1"]
[EndTime "10:06:18 PDT"]
[Termination "bascheyaro won by resignation"]

1. e4 {[%clk 0:03:00.9]} 1... e6 {[%clk 0:02:59.7]} 2. d4 {[%clk 0:03:00.9]}
2... d5 {[%clk 0:02:59.8]} 3. Nd2 {[%clk 0:03:01.5]} 3... c5 {[%clk 0:02:59.8]}
4. Ngf3 {[%clk 0:03:01.7]} 4... Nc6 {[%clk 0:02:59.6]} 5. exd5 {[%clk
0:02:58.6]} 5... exd5 {[%clk 0:02:59.5]} 6. Bb5 {[%clk 0:02:59]} 6... c4 {[%clk
0:02:59.7]} 7. O-O {[%clk 0:02:53.6]} 7... Bd6 {[%clk 0:03:00.1]} 8. b3 {[%clk
0:02:53]} 8... cxb3 {[%clk 0:03:01]} 9. axb3 {[%clk 0:02:53.2]} 9... Ne7 {[%clk
0:03:01.3]} 10. c3 {[%clk 0:02:52.5]} 10... O-O {[%clk 0:03:01.3]} 11. Re1
{[%clk 0:02:45.4]} 11... Bf5 {[%clk 0:03:01.2]} 12. Nf1 {[%clk 0:02:43.5]} 12...
a6 {[%clk 0:02:59.9]} 13. Bd3 {[%clk 0:02:43.5]} 13... Qd7 {[%clk 0:02:59.6]}
14. Ne3 {[%clk 0:02:40.1]} 14... Bg6 {[%clk 0:02:59.6]} 15. Ba3 {[%clk
0:02:35.8]} 15... Bxa3 {[%clk 0:02:58.6]} 16. Rxa3 {[%clk 0:02:36.7]} 16... Rfe8
{[%clk 0:02:58.4]} 17. Ra1 {[%clk 0:02:18.2]} 17... Qd6 {[%clk 0:02:56.2]} 18.
Bxg6 {[%clk 0:02:12.8]} 18... hxg6 {[%clk 0:02:55.4]} 19. c4 {[%clk 0:02:04.6]}
19... Rad8 {[%clk 0:02:48.6]} 20. c5 {[%clk 0:02:01.2]} 20... Qf6 {[%clk
0:02:48.6]} 21. Ng4 {[%clk 0:01:57.2]} 21... Qf4 {[%clk 0:02:48.5]} 22. Nge5
{[%clk 0:01:56.7]} 22... Qf5 {[%clk 0:02:40.4]} 23. Qd2 {[%clk 0:01:51.4]} 23...
f6 {[%clk 0:02:31.5]} 24. Nd3 {[%clk 0:01:50.7]} 24... g5 {[%clk 0:02:28.3]} 25.
h3 {[%clk 0:01:49.6]} 25... Ng6 {[%clk 0:02:27.3]} 26. Kh2 {[%clk 0:01:09.2]}
26... Re4 {[%clk 0:02:25.5]} 27. Nb4 {[%clk 0:01:02.6]} 27... g4 {[%clk
0:02:14.4]} 28. hxg4 {[%clk 0:00:56.7]} 28... Rxg4 {[%clk 0:02:14]} 29. Nxc6
{[%clk 0:00:55.2]} 29... bxc6 {[%clk 0:02:14]} 30. Re3 {[%clk 0:00:23.9]} 30...
Nf4 {[%clk 0:02:11.7]} 31. g3 {[%clk 0:00:24.3]} 31... Rg6 {[%clk 0:01:32]} 32.
Nh4 {[%clk 0:00:21.3]} 32... Qh3+ {[%clk 0:01:32.1]} 33. Kg1 {[%clk 0:00:21.9]}
33... Qxh4 {[%clk 0:01:32.5]} 34. Rf3 {[%clk 0:00:17.6]} 34... Nh3+ {[%clk
0:01:27.8]} 35. Kf1 {[%clk 0:00:18.1]} 35... Qe4 {[%clk 0:01:24.9]} 36. Qd3
{[%clk 0:00:14.1]} 36... Ng5 {[%clk 0:01:21.6]} 37. Qxe4 {[%clk 0:00:11.2]}
37... Nxe4 {[%clk 0:01:22.2]} 38. Kg2 {[%clk 0:00:10]} 38... Ra8 {[%clk
0:01:21.1]} 39. Ra5 {[%clk 0:00:09.8]} 39... Kf7 {[%clk 0:01:19.6]} 40. Re3
{[%clk 0:00:10.2]} 40... f5 {[%clk 0:01:19.8]} 41. f3 {[%clk 0:00:10.1]} 41...
Rxg3+ {[%clk 0:01:17.3]} 42. Kf1 {[%clk 0:00:08.8]} 42... f4 {[%clk 0:01:17.1]}
43. Rd3 {[%clk 0:00:07.1]} 43... Rh8 {[%clk 0:01:14.2]} 44. Rxa6 {[%clk
0:00:05.6]} 44... Rh1+ {[%clk 0:01:14.2]} 45. Ke2 {[%clk 0:00:05.9]} 45... Rh2+
{[%clk 0:01:14.6]} 0-1

[Event "*** SCC Grand Prix: Titled Tuesday Blitz"]
[Site "Chess.com"]
[Date "2020.06.09"]
[Round "6"]
[White "korbul"]
[Black "j_coca"]
[Result "1/2-1/2"]
[WhiteElo "2513"]
[BlackElo "2216"]
[TimeControl "180+1"]
[EndTime "10:06:18 PDT"]
[Termination "Game drawn by repetition"]

1. d4 {[%clk 0:03:00.9]} 1... g6 {[%clk 0:02:48.6]} 2. e4 {[%clk 0:03:00.2]}
2... Bg7 {[%clk 0:02:48.5]} 3. Nc3 {[%clk 0:03:00.2]} 3... d6 {[%clk 0:02:48.6]}
4. Bg5 {[%clk 0:02:59.8]} 4... Nc6 {[%clk 0:02:47.7]} 5. Nge2 {[%clk 0:02:58]}
5... f6 {[%clk 0:02:45.7]} 6. Be3 {[%clk 0:02:57.3]} 6... e5 {[%clk 0:02:45.8]}
7. f4 {[%clk 0:02:50.7]} 7... Nh6 {[%clk 0:02:40.4]} 8. h3 {[%clk 0:02:50.3]}
8... O-O {[%clk 0:02:40.1]} 9. d5 {[%clk 0:02:40.2]} 9... Ne7 {[%clk 0:02:38.7]}
10. g4 {[%clk 0:02:39.7]} 10... Nf7 {[%clk 0:02:31.8]} 11. f5 {[%clk 0:02:38.6]}
11... gxf5 {[%clk 0:02:31.5]} 12. gxf5 {[%clk 0:02:38.1]} 12... Kh8 {[%clk
0:02:30.8]} 13. Qd2 {[%clk 0:02:37.5]} 13... Rg8 {[%clk 0:02:30.3]} 14. O-O-O
{[%clk 0:02:37.2]} 14... c6 {[%clk 0:02:27.8]} 15. Ng3 {[%clk 0:02:30.6]} 15...
cxd5 {[%clk 0:02:26.8]} 16. Nxd5 {[%clk 0:02:29.8]} 16... Nxd5 {[%clk
0:02:26.5]} 17. Qxd5 {[%clk 0:02:29.1]} 17... Qe7 {[%clk 0:02:25.9]} 18. Bc4
{[%clk 0:02:20.4]} 18... Rf8 {[%clk 0:02:22.2]} 19. Nh5 {[%clk 0:02:18.9]} 19...
Bh6 {[%clk 0:02:18.4]} 20. Bxh6 {[%clk 0:02:15]} 20... Nxh6 {[%clk 0:02:19.3]}
21. Rhg1 {[%clk 0:02:13.9]} 21... Bd7 {[%clk 0:02:10.4]} 22. Rg7 {[%clk
0:02:12.8]} 22... Qe8 {[%clk 0:02:01.6]} 23. Qxd6 {[%clk 0:01:47.7]} 23... Qxh5
{[%clk 0:01:47.2]} 24. Qxd7 {[%clk 0:01:45.4]} 24... Nxf5 {[%clk 0:01:36.7]} 25.
Rgg1 {[%clk 0:01:26.7]} 25... Qh6+ {[%clk 0:01:25.7]} 26. Kb1 {[%clk 0:01:21.4]}
26... Ne3 {[%clk 0:01:22]} 27. Qd2 {[%clk 0:00:46.3]} 27... Qf4 {[%clk
0:00:19.1]} 28. Qd7 {[%clk 0:00:30]} 28... Qh6 {[%clk 0:00:19]} 29. Qd2 {[%clk
0:00:24.9]} 29... Qf4 {[%clk 0:00:18.7]} 30. Qd7 {[%clk 0:00:19.6]} 30... Qh6
{[%clk 0:00:18.6]} 1/2-1/2

[Event "*** SCC Grand Prix: Titled Tuesday Blitz"]
[Site "Chess.com"]
[Date "2020.06.09"]
[Round "6"]
[White "HElissalt"]
[Black "m-garcett"]
[Result "0-1"]
[WhiteElo "2199"]
[BlackElo "2076"]
[TimeControl "180+1"]
[EndTime "10:06:19 PDT"]
[Termination "m-garcett won by resignation"]

1. c4 {[%clk 0:03:00.9]} 1... e5 {[%clk 0:02:57.4]} 2. Nc3 {[%clk 0:03:00.7]}
2... Nc6 {[%clk 0:02:57]} 3. g3 {[%clk 0:02:59.6]} 3... g6 {[%clk 0:02:56.8]} 4.
Bg2 {[%clk 0:02:59.1]} 4... Bg7 {[%clk 0:02:57.3]} 5. d3 {[%clk 0:02:58.9]} 5...
d6 {[%clk 0:02:57.6]} 6. e4 {[%clk 0:02:58.7]} 6... f5 {[%clk 0:02:55.9]} 7.
Nge2 {[%clk 0:02:55.9]} 7... Nf6 {[%clk 0:02:55.4]} 8. exf5 {[%clk 0:02:54.9]}
8... Bxf5 {[%clk 0:02:50.4]} 9. h3 {[%clk 0:02:51.7]} 9... O-O {[%clk
0:02:50.1]} 10. Be3 {[%clk 0:02:50.4]} 10... Re8 {[%clk 0:02:43.9]} 11. O-O
{[%clk 0:02:28.2]} 11... Nb4 {[%clk 0:02:44]} 12. Ne4 {[%clk 0:02:27.6]} 12...
Qd7 {[%clk 0:02:36.4]} 13. Kh2 {[%clk 0:02:26.6]} 13... Nxe4 {[%clk 0:02:21.2]}
14. dxe4 {[%clk 0:02:25.6]} 14... Be6 {[%clk 0:02:21.3]} 15. b3 {[%clk
0:02:25.3]} 15... Nc6 {[%clk 0:02:21]} 16. Qd2 {[%clk 0:02:21.3]} 16... a5
{[%clk 0:02:18.5]} 17. Rac1 {[%clk 0:02:04.6]} 17... Rf8 {[%clk 0:02:15.4]} 18.
f4 {[%clk 0:01:42.3]} 18... exf4 {[%clk 0:02:13.8]} 19. gxf4 {[%clk 0:01:40.3]}
19... Rae8 {[%clk 0:02:14.4]} 20. Ng3 {[%clk 0:01:35.6]} 20... b6 {[%clk
0:01:54.3]} 21. Rcd1 {[%clk 0:01:34.4]} 21... Ne7 {[%clk 0:01:54]} 22. c5 {[%clk
0:01:23.5]} 22... bxc5 {[%clk 0:01:52.8]} 23. Bxc5 {[%clk 0:01:23.4]} 23... a4
{[%clk 0:01:53.3]} 24. b4 {[%clk 0:01:17.6]} 24... h5 {[%clk 0:01:47.2]} 25. Bd4
{[%clk 0:01:16.3]} 25... Bh6 {[%clk 0:01:42.4]} 26. Be3 {[%clk 0:01:13.2]} 26...
h4 {[%clk 0:01:42.3]} 27. Ne2 {[%clk 0:01:12.9]} 27... Nc6 {[%clk 0:01:37.9]}
28. a3 {[%clk 0:01:11.5]} 28... Bb3 {[%clk 0:01:24.4]} 29. Rc1 {[%clk 0:01:11]}
29... Ne7 {[%clk 0:01:16.7]} 30. Qe1 {[%clk 0:01:10]} 30... d5 {[%clk
0:01:16.9]} 31. Qxh4 {[%clk 0:01:07.3]} 31... Bg7 {[%clk 0:01:14.9]} 32. e5
{[%clk 0:00:41.3]} 32... Nf5 {[%clk 0:01:14.3]} 33. Qf2 {[%clk 0:00:40.8]} 33...
Bh6 {[%clk 0:01:04.3]} 34. Bc5 {[%clk 0:00:28.4]} 34... Bc4 {[%clk 0:01:02.8]}
35. Bxf8 {[%clk 0:00:25.2]} 35... Rxf8 {[%clk 0:01:01.3]} 36. Nd4 {[%clk
0:00:23.8]} 36... Bxf1 {[%clk 0:00:56.3]} 37. Rxf1 {[%clk 0:00:23.6]} 37... Nxd4
{[%clk 0:00:49.2]} 38. Qxd4 {[%clk 0:00:23.2]} 38... c6 {[%clk 0:00:50]} 39. Qd3
{[%clk 0:00:21.3]} 39... Qf5 {[%clk 0:00:48.4]} 40. Qxf5 {[%clk 0:00:20.2]}
40... Rxf5 {[%clk 0:00:49.3]} 41. Rc1 {[%clk 0:00:19.6]} 41... Bxf4+ {[%clk
0:00:49]} 42. Kh1 {[%clk 0:00:20.1]} 42... Bxc1 {[%clk 0:00:49.9]} 0-1

[Event "*** SCC Grand Prix: Titled Tuesday Blitz"]
[Site "Chess.com"]
[Date "2020.06.09"]
[Round "6"]
[White "mishanick"]
[Black "Gabrielian_Artur"]
[Result "1-0"]
[WhiteElo "2944"]
[BlackElo "2743"]
[TimeControl "180+1"]
[EndTime "10:06:21 PDT"]
[Termination "mishanick won by resignation"]

1. d4 {[%clk 0:03:00.9]} 1... Nf6 {[%clk 0:02:59.6]} 2. c4 {[%clk 0:03:01.5]}
2... c5 {[%clk 0:02:59.5]} 3. d5 {[%clk 0:03:02.1]} 3... e6 {[%clk 0:02:59.8]}
4. Nc3 {[%clk 0:03:02.7]} 4... exd5 {[%clk 0:03:00.2]} 5. cxd5 {[%clk
0:03:03.6]} 5... d6 {[%clk 0:03:00.7]} 6. e4 {[%clk 0:03:03.6]} 6... g6 {[%clk
0:03:00.8]} 7. Nf3 {[%clk 0:03:04]} 7... Bg7 {[%clk 0:03:00.9]} 8. h3 {[%clk
0:03:03.6]} 8... O-O {[%clk 0:03:00.8]} 9. Bd3 {[%clk 0:03:04.2]} 9... Nbd7
{[%clk 0:03:00.1]} 10. O-O {[%clk 0:03:03.1]} 10... Re8 {[%clk 0:03:00.4]} 11.
Bf4 {[%clk 0:03:00.9]} 11... c4 {[%clk 0:03:00.3]} 12. Bc2 {[%clk 0:02:57]}
12... Nc5 {[%clk 0:03:00.5]} 13. Re1 {[%clk 0:02:55.7]} 13... b5 {[%clk
0:03:00.3]} 14. Nxb5 {[%clk 0:02:51.8]} 14... Ncxe4 {[%clk 0:02:55]} 15. Nbd4
{[%clk 0:02:48.2]} 15... Bf5 {[%clk 0:02:41.2]} 16. Nxf5 {[%clk 0:02:42]} 16...
gxf5 {[%clk 0:02:41]} 17. Ba4 {[%clk 0:02:13.4]} 17... Re7 {[%clk 0:02:08.3]}
18. Nd4 {[%clk 0:01:27]} 18... Qb6 {[%clk 0:02:00.4]} 19. Rf1 {[%clk 0:01:02.4]}
19... Nxd5 {[%clk 0:00:54.7]} 20. Nxf5 {[%clk 0:01:01.9]} 20... Nxf4 {[%clk
0:00:54]} 21. Nxe7+ {[%clk 0:01:00.6]} 21... Kf8 {[%clk 0:00:43]} 22. Nd5 {[%clk
0:00:57.3]} 22... Nxh3+ {[%clk 0:00:19.2]} 23. gxh3 {[%clk 0:00:56.3]} 23...
Qxb2 {[%clk 0:00:19.3]} 24. Rb1 {[%clk 0:00:36.9]} 24... Qe5 {[%clk 0:00:18.8]}
25. Bc6 {[%clk 0:00:37.4]} 25... Rd8 {[%clk 0:00:16.2]} 26. Qf3 {[%clk
0:00:35.3]} 26... Ng5 {[%clk 0:00:15.6]} 27. Qg3 {[%clk 0:00:33.1]} 27... Qf5
{[%clk 0:00:14.2]} 28. Rbe1 {[%clk 0:00:28.6]} 28... Nxh3+ {[%clk 0:00:13.5]}
29. Kg2 {[%clk 0:00:28.9]} 29... Ng5 {[%clk 0:00:13.3]} 30. Qxd6+ {[%clk
0:00:28.3]} 1-0

[Event "*** SCC Grand Prix: Titled Tuesday Blitz"]
[Site "Chess.com"]
[Date "2020.06.09"]
[Round "6"]
[White "SiddharthGMJagadeesh"]
[Black "Khvicha_Supatashvili"]
[Result "0-1"]
[WhiteElo "2445"]
[BlackElo "2728"]
[TimeControl "180+1"]
[EndTime "10:06:23 PDT"]
[Termination "Khvicha_Supatashvili won by resignation"]

1. d4 {[%clk 0:03:00.9]} 1... Nf6 {[%clk 0:02:59.5]} 2. Nf3 {[%clk 0:03:00.4]}
2... d5 {[%clk 0:02:59.1]} 3. c4 {[%clk 0:02:59.7]} 3... e6 {[%clk 0:02:58.6]}
4. Qc2 {[%clk 0:03:00]} 4... Be7 {[%clk 0:02:55.5]} 5. g3 {[%clk 0:02:59.7]}
5... O-O {[%clk 0:02:54]} 6. Bg2 {[%clk 0:02:59.8]} 6... c6 {[%clk 0:02:52]} 7.
O-O {[%clk 0:02:59.2]} 7... Nbd7 {[%clk 0:02:51.6]} 8. b3 {[%clk 0:02:56.2]}
8... b5 {[%clk 0:02:47.8]} 9. Nbd2 {[%clk 0:02:28.2]} 9... bxc4 {[%clk 0:02:33]}
10. bxc4 {[%clk 0:02:28]} 10... Ba6 {[%clk 0:02:33.9]} 11. Qa4 {[%clk
0:02:24.2]} 11... Qc8 {[%clk 0:02:30.2]} 12. Qc2 {[%clk 0:02:05.6]} 12... Nb6
{[%clk 0:02:26]} 13. Ne5 {[%clk 0:02:04.9]} 13... Nfd7 {[%clk 0:02:25.5]} 14. c5
{[%clk 0:01:57.7]} 14... Nxe5 {[%clk 0:02:21.4]} 15. cxb6 {[%clk 0:01:55.3]}
15... Nd7 {[%clk 0:02:18.2]} 16. bxa7 {[%clk 0:01:54.8]} 16... Bxe2 {[%clk
0:02:17.7]} 17. Re1 {[%clk 0:01:54.1]} 17... Qa6 {[%clk 0:02:12.8]} 18. Nb3
{[%clk 0:01:43.1]} 18... Bd3 {[%clk 0:02:12.1]} 19. Qc3 {[%clk 0:01:40.2]} 19...
Rxa7 {[%clk 0:02:08.7]} 20. Bf4 {[%clk 0:01:36.3]} 20... Qc4 {[%clk 0:02:03.4]}
21. Rec1 {[%clk 0:01:30.4]} 21... Ba3 {[%clk 0:01:55.1]} 22. Qxc4 {[%clk
0:01:03.8]} 22... dxc4 {[%clk 0:01:51]} 23. Nd2 {[%clk 0:00:56.1]} 23... Bxc1
{[%clk 0:01:49.4]} 24. Rxc1 {[%clk 0:00:57]} 24... Nb6 {[%clk 0:01:41.7]} 25.
Bd6 {[%clk 0:00:53.6]} 25... Rxa2 {[%clk 0:01:39]} 26. Bxf8 {[%clk 0:00:52.1]}
26... Kxf8 {[%clk 0:01:37.2]} 27. Ne4 {[%clk 0:00:51]} 27... Na4 {[%clk
0:01:18.7]} 28. h4 {[%clk 0:00:41.3]} 28... h6 {[%clk 0:01:08.1]} 29. Nc3 {[%clk
0:00:41]} 29... Nxc3 {[%clk 0:01:03.8]} 30. Rxc3 {[%clk 0:00:41.9]} 30... Ra6
{[%clk 0:00:51]} 31. Rc1 {[%clk 0:00:33.2]} 31... Ke7 {[%clk 0:00:50.5]} 32. Bf1
{[%clk 0:00:32.7]} 32... Kd6 {[%clk 0:00:45.4]} 33. Kg2 {[%clk 0:00:18.4]} 33...
Ra3 {[%clk 0:00:42.1]} 34. Bxd3 {[%clk 0:00:13]} 34... cxd3 {[%clk 0:00:41.4]}
35. Rd1 {[%clk 0:00:12.7]} 35... Kd5 {[%clk 0:00:41]} 36. Kf3 {[%clk 0:00:12.9]}
36... Kxd4 {[%clk 0:00:40.8]} 0-1

[Event "*** SCC Grand Prix: Titled Tuesday Blitz"]
[Site "Chess.com"]
[Date "2020.06.09"]
[Round "6"]
[White "LiverpooL174"]
[Black "CrushingKings"]
[Result "1-0"]
[WhiteElo "2673"]
[BlackElo "2510"]
[TimeControl "180+1"]
[EndTime "10:06:23 PDT"]
[Termination "LiverpooL174 won on time"]

1. e4 {[%clk 0:03:00.9]} 1... g6 {[%clk 0:02:58.9]} 2. d4 {[%clk 0:02:59]} 2...
Bg7 {[%clk 0:02:58.9]} 3. Nc3 {[%clk 0:02:59.6]} 3... c6 {[%clk 0:02:59.3]} 4.
Nf3 {[%clk 0:02:54.1]} 4... d5 {[%clk 0:02:58.9]} 5. e5 {[%clk 0:02:52.4]} 5...
f6 {[%clk 0:02:56.4]} 6. Bf4 {[%clk 0:02:48.8]} 6... Bg4 {[%clk 0:02:52.4]} 7.
exf6 {[%clk 0:02:39.1]} 7... Nxf6 {[%clk 0:02:48.1]} 8. h3 {[%clk 0:02:39.6]}
8... Bxf3 {[%clk 0:02:45.2]} 9. Qxf3 {[%clk 0:02:40.5]} 9... O-O {[%clk
0:02:45.8]} 10. Qe3 {[%clk 0:02:38.8]} 10... Nbd7 {[%clk 0:02:00.5]} 11. O-O-O
{[%clk 0:02:35.1]} 11... Re8 {[%clk 0:01:22.4]} 12. g4 {[%clk 0:02:26.6]} 12...
Qb6 {[%clk 0:01:20]} 13. Kb1 {[%clk 0:02:21.2]} 13... e5 {[%clk 0:01:16.3]} 14.
dxe5 {[%clk 0:02:11]} 14... Qxe3 {[%clk 0:01:15.4]} 15. Bxe3 {[%clk 0:02:04.6]}
15... Nxe5 {[%clk 0:01:15.6]} 16. Be2 {[%clk 0:02:01.1]} 16... b6 {[%clk
0:01:08.1]} 17. Rhe1 {[%clk 0:01:54.4]} 17... Re7 {[%clk 0:00:59.4]} 18. f4
{[%clk 0:01:51.5]} 18... Nf7 {[%clk 0:00:59.1]} 19. Bf3 {[%clk 0:01:48.9]} 19...
Rae8 {[%clk 0:00:57.7]} 20. Bf2 {[%clk 0:01:49.4]} 20... Rxe1 {[%clk 0:00:54.7]}
21. Rxe1 {[%clk 0:01:50.3]} 21... Rxe1+ {[%clk 0:00:54]} 22. Bxe1 {[%clk
0:01:51.2]} 22... d4 {[%clk 0:00:54.1]} 23. Ne4 {[%clk 0:01:48.7]} 23... Nd5
{[%clk 0:00:49.3]} 24. Bd2 {[%clk 0:01:46.5]} 24... Ne7 {[%clk 0:00:30.6]} 25.
a4 {[%clk 0:01:43.8]} 25... a5 {[%clk 0:00:28.2]} 26. b4 {[%clk 0:01:40.4]}
26... axb4 {[%clk 0:00:28.4]} 27. Bxb4 {[%clk 0:01:41.3]} 27... c5 {[%clk
0:00:27.3]} 28. Nxc5 {[%clk 0:01:38.8]} 28... bxc5 {[%clk 0:00:23.8]} 29. Bxc5
{[%clk 0:01:39.7]} 29... Nc8 {[%clk 0:00:24.4]} 30. a5 {[%clk 0:01:37.4]} 30...
Nfd6 {[%clk 0:00:17.7]} 31. a6 {[%clk 0:01:35.5]} 31... Nb5 {[%clk 0:00:15.8]}
32. Bd5+ {[%clk 0:01:31.8]} 32... Kh8 {[%clk 0:00:15.5]} 33. Bc4 {[%clk
0:01:30.1]} 33... Nba7 {[%clk 0:00:11.5]} 34. Kc1 {[%clk 0:01:21.5]} 34... Bf6
{[%clk 0:00:11.4]} 35. Kd2 {[%clk 0:01:21.2]} 35... h6 {[%clk 0:00:10.7]} 36.
Kd3 {[%clk 0:01:15.3]} 36... Kg7 {[%clk 0:00:09.6]} 37. Bd5 {[%clk 0:01:10.8]}
37... Nb5 {[%clk 0:00:07.6]} 38. Kc4 {[%clk 0:01:08.6]} 38... Nc7 {[%clk
0:00:07]} 39. Bb7 {[%clk 0:01:05.7]} 39... Ne7 {[%clk 0:00:06.2]} 40. a7 {[%clk
0:01:03.3]} 40... Kf7 {[%clk 0:00:06.6]} 41. Bb6 {[%clk 0:00:58.7]} 1-0

[Event "*** SCC Grand Prix: Titled Tuesday Blitz"]
[Site "Chess.com"]
[Date "2020.06.09"]
[Round "6"]
[White "Future2700"]
[Black "Lion-Al-Messi"]
[Result "0-1"]
[WhiteElo "2394"]
[BlackElo "2402"]
[TimeControl "180+1"]
[EndTime "10:06:23 PDT"]
[Termination "Lion-Al-Messi won by resignation"]

1. e4 {[%clk 0:03:00.9]} 1... e6 {[%clk 0:02:59.4]} 2. d4 {[%clk 0:03:00.8]}
2... d5 {[%clk 0:02:59]} 3. Nd2 {[%clk 0:03:01.3]} 3... c5 {[%clk 0:02:58.5]} 4.
Ngf3 {[%clk 0:03:01.1]} 4... cxd4 {[%clk 0:02:58.2]} 5. Nxd4 {[%clk 0:03:01.3]}
5... Nc6 {[%clk 0:02:57.6]} 6. Nxc6 {[%clk 0:02:59.2]} 6... bxc6 {[%clk
0:02:58.5]} 7. Bd3 {[%clk 0:02:59.6]} 7... Bd6 {[%clk 0:02:58]} 8. Qe2 {[%clk
0:02:59.3]} 8... Ne7 {[%clk 0:02:56.6]} 9. c4 {[%clk 0:02:57]} 9... O-O {[%clk
0:02:00.5]} 10. e5 {[%clk 0:02:52.1]} 10... Bc7 {[%clk 0:01:56.4]} 11. Nf3
{[%clk 0:02:52.6]} 11... Ng6 {[%clk 0:01:54.9]} 12. h4 {[%clk 0:02:51.3]} 12...
Ba5+ {[%clk 0:01:54.1]} 13. Kf1 {[%clk 0:02:49.8]} 13... f5 {[%clk 0:01:47.8]}
14. exf6 {[%clk 0:02:31.1]} 14... Qxf6 {[%clk 0:01:46.8]} 15. Bg5 {[%clk
0:02:23.8]} 15... Qf7 {[%clk 0:01:46.5]} 16. h5 {[%clk 0:01:45.2]} 16... Nf4
{[%clk 0:01:44]} 17. Bxf4 {[%clk 0:01:45.7]} 17... Qxf4 {[%clk 0:01:44.6]} 18.
Qe5 {[%clk 0:01:46.4]} 18... dxc4 {[%clk 0:01:23.3]} 19. Qxa5 {[%clk 0:01:29.2]}
19... cxd3 {[%clk 0:01:20.7]} 20. Rd1 {[%clk 0:01:24.2]} 20... Rb8 {[%clk
0:01:08.3]} 21. Rh4 {[%clk 0:01:00]} 21... Qf6 {[%clk 0:01:00.7]} 22. b3 {[%clk
0:00:56.9]} 22... Rb5 {[%clk 0:01:00.1]} 23. Qxa7 {[%clk 0:00:47.9]} 23... Rd5
{[%clk 0:00:58.9]} 24. Rd4 {[%clk 0:00:48]} 24... e5 {[%clk 0:00:57]} 25. Rc4
{[%clk 0:00:12.8]} 25... Bf5 {[%clk 0:00:47.8]} 26. Qe3 {[%clk 0:00:12.2]} 26...
e4 {[%clk 0:00:47.4]} 27. Nd2 {[%clk 0:00:10.2]} 27... Bg4 {[%clk 0:00:44.6]}
28. Re1 {[%clk 0:00:10]} 28... Rxh5 {[%clk 0:00:42.2]} 29. Kg1 {[%clk
0:00:08.7]} 29... Qh4 {[%clk 0:00:41.3]} 30. f3 {[%clk 0:00:04.9]} 30... Bxf3
{[%clk 0:00:37.8]} 31. Nxf3 {[%clk 0:00:03.8]} 31... Rxf3 {[%clk 0:00:36.9]} 32.
Qxf3 {[%clk 0:00:03.7]} 32... Qxe1+ {[%clk 0:00:34.4]} 33. Qf1 {[%clk
0:00:04.2]} 0-1